Workbook

Sheet Sheet1
A1: 2024年生产部1月接收处置记录统计表 | Q1: 自产废物
A2: 废物名称 | B2: 危废代码 | C2: 形态 | D2: 上月结存 | E2: 本月接收量 | F2: 处置量及工艺 | J2: 库存量 | K2: 1#库 | L2: 2#库 | M2: 罐区 | N2: 料坑 | Q2: 废物名称 | R2: 上月结存 | S2: 本月产生量 | T2: 包数 | U2: 本月处理 | X2: 库存 | Y2: 备注 | Z2: 存储位置
F3: 固废焚烧 | G3: 废液焚烧 | H3: 清洗大桶 | I3: 阜新环发 | K3: 1#库 | L3: 2#库 | M3: 罐区 | N3: 料坑 | U3: 焚烧处置 | V3: 液体炉 | W3: 拉运
A4: 釜残杂质 | B4: 271-002-02 | C4: 半固态 | D4: 50.29 | G4: =17.25 -> 17.25 | J4: =D4+E4-F4-G4-H4-I4 -> 33.04 | M4: 33.04 | O4: =K4+L4+M4+N4 -> 33.04 | Q4: 炉渣（回转窑） | R4: 240.136 | S4: 167.012 | T4: 132 | X4: =R4+S4-U4-W4-V4 -> 407.148
A5: 废有机溶剂 | B5: 271-002-02 | C5: 液态 | D5: 15.321 | J5: 15.321 | L5: 15.321 | O5: 15.321 | Q5: 飞灰（回转窑） | R5: 4.78 | S5: 29.01 | T5: 65 | W5: 18.92 | X5: 14.87
A6: 废盐 | B6: 271-005-02 | C6: 固态 | D6: 0 | E6: =28.28+21.76 -> 50.04 | F6: =18.28+10 -> 28.28 | J6: 21.76 | K6: 21.76 | O6: 21.76 | Q6: 飞灰（废液炉） | R6: 3.86 | S6: 1.49 | T6: 4 | W6: 3.86 | X6: 1.49
A7: 实验室废液 | B7: 900-002-03 | C7: 液态 | D7: 124.9 | E7: =17 -> 17 | G7: =18.5+6.8+9.7 -> 35 | J7: 106.9 | L7: 106.9 | O7: 106.9 | Q7: 废油渣/泥 | R7: 0 | X7: 0 | Y7: 精馏切水后剩下的罐底泥
A8: 一般废药品 | B8: 900-002-03 | C8: 固态 | D8: 3.04 | E8: =1 -> 1 | F8: =1.04+2+1 -> 4.04 | J8: 0 | O8: 0 | Q8: 含油污水 | R8: 0 | X8: 0 | Y8: 蒸汽清洗过程 | Z8: 2#库
A9: 磷化铝、杀虫剂 | B9: 900-003-04 | C9: 固态 | D9: 0 | E9: =0.245+0.14 -> 0.385 | F9: =0.245 -> 0.245 | J9: 0.14 | L9: 0.14 | O9: 0.14 | Q9: 废商标 | R9: 0 | X9: 0 | Y9: 除商标 | Z9: 2#库
A10: 废盐 | B10: 263-008-04 | C10: 固态 | D10: 26.88 | F10: =20+6.88 -> 26.88 | J10: 0 | O10: 0 | Q10: 废残液 | R10: 0 | X10: 0 | Y10: 抽残液 | Z10: 2#库
A11: 蒸馏残液 | B11: 263-008-04 | C11: 半固态 | D11: 3.78 | J11: 3.78 | K11: 3.78 | O11: 3.78 | Q11: 废渣 | R11: 0 | X11: 0 | Y11: 清洗过程 | Z11: 2#库
A12: 污泥 | B12: 263-011-04 | C12: 固态 | D12: 4.64 | F12: =4.64 -> 4.64 | J12: 0 | O12: 0 | Q12: 漆渣 | R12: 0 | X12: 0 | Y12: 清洗过程
A13: 废有机溶剂 | B13: 900-401-06 | C13: 液态 | D13: 0.86 | J13: 0.86 | L13: 0.86 | O13: 0.86 | Q13: 污水厂污泥 | R13: 0 | S13: 1.27 | U13: 1.27 | X13: 0 | Y13: 水处理后产生的污泥 | Z13: 2#库
A14: 废有机溶剂及废物 | B14: 900-402-06 | C14: 液态 | D14: 119.832 | E14: =3.934 -> 3.934 | F14: =0.14 -> 0.14 | J14: 123.626 | K14: 14.142 | L14: 109.484 | O14: 123.626 | Q14: 废清洗剂 | R14: 0 | X14: 0 | Y14: 清洗剂清洗过程
A15: 废有机溶剂 | B15: 900-404-06 | C15: 液态 | D15: 51.738 | F15: =13.6+4.24+0.15+3.338+2.8+8.4+3 -> 35.528 | J15: 16.21 | L15: =26.67-10.46 -> 16.21 | O15: 16.21
A16: 定期更换的活性炭 | B16: 900-405-06 | C16: 固态 | D16: 0.01 | F16: =0.01 -> 0.01 | J16: 0 | O16: 0
A17: 废有机溶剂 | B17: 900-407-06 | C17: 液态 | D17: 56.15 | E17: =23.85 -> 23.85 | F17: =21.15+7+8+8 -> 44.15 | J17: 35.85 | K17: 35.85 | O17: 35.85
A18: 油污水 | B18: 251-001-08 | C18: 液态 | D18: 6.5 | J18: 6.5 | L18: 6.5 | O18: 6.5
A19: 废滤芯 | B19: 251-012-08 | C19: 固态 | D19: 0.48 | F19: =0.48 -> 0.48 | J19: 0 | O19: 0
A20: 废溶剂油 | B20: 291-001-08 | C20: 液态 | D20: 29.94 | F20: =6.94 -> 6.94 | J20: 23 | M20: 23 | O20: 23
A21: 废溶剂油 | B21: 291-001-08 | C21: 半固态 | D21: 0 | E21: =29.46+13.06 -> 42.52 | J21: 42.52 | K21: 42.52 | O21: 42.52
A22: 含油泥浆 | B22: 071-002-08 | C22: 液态 | D22: 1216.6 | E22: =168.3+52.8+8.8+96.8 -> 326.7 | J22: 1543.3 | M22: =1919.5+26.4-402.6 -> 1543.3 | O22: 1543.3
A23: 含油岩屑 | B23: 071-002-08 | C23: 半固态 | D23: 856.667 | E23: =147.84+88.704 -> 236.544 | F23: =27.7+18.84+18.47+5.54+9.98+11.08+11.08+23.3+5.54+5.54+5.54-5.54 -> 137.07 | J23: 956.141 | M23: =860.836-94.26 -> 766.576 | N23: 189.565 | O23: 956.141
A24: HW08废油 | B24: 900-200-08 | C24: 液态 | D24: 28.2 | E24: =2.78 -> 2.78 | J24: 30.98 | M24: 30.98 | O24: 30.98
A25: 油泥 | B25: 900-201-08 | C25: 液态 | D25: 3.226 | J25: 3.226 | M25: 3.226 | O25: 3.226
A26: 润滑脂 | B26: 900-209-08 | C26: 半固态 | D26: 0.05 | F26: =0.05 -> 0.05 | J26: 0 | O26: 0
A27: 水处理浮渣及污泥 | B27: 900-210-08 | C27: 半固态 | D27: 63.49 | E27: =0.86+4.1 -> 4.96 | F27: =9+7.25+4.66+4+16.96+12.48+10 -> 64.35 | J27: 4.1 | L27: 4.1 | O27: 4.1
A28: 废机油、含油废水 | B28: 900-210-08 | C28: 液态 | D28: 184.42 | J28: 184.42 | M28: =184.42 -> 184.42 | O28: 184.42
A29: 废水处理过程产废油、油泥、浮渣 | B29: 900-210-08 | C29: 液态 | D29: 416 | E29: =96 -> 96 | J29: 512 | M29: =704-192 -> 512 | O29: 512
A30: 废机油 | B30: 900-213-08 | C30: 液态 | D30: 0 | E30: 1 | J30: 1 | M30: 1 | O30: 1
A31: 废矿物油 | B31: 900-214-08 | C31: 液态 | D31: 40.6089 | J31: 40.6089 | L31: 0.2 | M31: 40.4089 | O31: 40.6089
A32: 废矿物油 | B32: 900-214-08 | C32: 半固态 | D32: 2 | F32: =2 -> 2 | J32: 0 | O32: 0
A33: 废矿物油 | B33: 900-217-08 | C33: 液态 | D33: 30.878 | E33: =0.27+0.376 -> 0.646 | G33: =0.6 -> 0.6 | J33: 30.924 | M33: 30.924 | O33: 30.924
A34: 废甘油 | B34: 900-217-08 | C34: 半固态 | D34: 0.42 | F34: =0.42 -> 0.42 | J34: 0 | O34: 0
A35: 废液压油 | B35: 900-218-08 | C35: 液态 | D35: 18.6908 | E35: =0.29+4.68+7.6+1.82 -> 14.39 | J35: 33.0808 | M35: 33.0808 | O35: 33.0808
A36: 废冷冻机油 | B36: 900-219-08 | C36: 液态 | D36: 1.02 | J36: 1.02 | M36: 1.02 | O36: 1.02
A37: 废矿物油与含矿物油废物 | B37: 900-220-08 | C37: 液态 | D37: 0.866 | G37: =0.166 -> 0.166 | J37: 0.7 | M37: 0.7 | O37: 0.7
A38: 废油泥 | B38: 900-221-08 | C38: 液态 | D38: 7.54 | F38: =7.54 -> 7.54 | J38: 0 | O38: 0
A39: 废矿物油 | B39: 900-249-08 | C39: 液态 | D39: 238.1029 | E39: =0.1+0.47+0.5+3.26+0.33+0.82 -> 5.48 | F39: =5.265+0.28+0.5 -> 6.045 | G39: =4.46+5.363+1 -> 10.823 | J39: 226.7149 | M39: =216.1149+10.6 -> 226.7149 | O39: 226.7149
A40: 废矿物油、废油桶 | B40: 900-249-08 | C40: 固态 | D40: 59.004 | E40: =3.66+2.8+0.102 -> 6.562 | F40: =1.289+16.9+1.635+1.12 -> 20.944 | H40: =14.56+8.6+3.9+0.04+3.66+2.8 -> 33.56 | J40: 11.062 | K40: 0.102 | L40: 10.96 | O40: 11.062
A41: 废矿物油、油泥 | B41: 900-249-08 | C41: 半固态 | D41: 18.88 | F41: =0.04+3.7 -> 3.74 | J41: 15.14 | K41: 2.32 | L41: 12.82 | O41: 15.14
A42: 废水、乳化液 | B42: 900-007-09 | C42: 液态 | D42: 40.9654 | F42: =11.34+0.607 -> 11.947 | G42: =0.1+0.4984+2.77+7.5 -> 10.8684 | J42: 18.15 | L42: 17.75 | M42: 0.4 | O42: 18.15
A43: 废乳化液 | B43: 900-006-09 | C43: 液态 | D43: 50.971 | E43: =2.7+25.7 -> 28.4 | F43: =2.4+0.68+2 -> 5.08 | G43: =1.9+5.38+13.82+9.04 -> 30.14 | J43: 44.151 | L43: 44.151 | O43: 44.151
A44: 废焦油渣 | B44: 252-005-11 | C44: 固态 | D44: 1.26 | F44: =1.26 -> 1.26 | J44: 0 | O44: 0
A45: 煤焦油、釜残 | B45: 900-013-11 | C45: 固态 | D45: 18 | E45: =1.381+0.68+2.4 -> 4.461 | F45: =2+2 -> 4 | J45: 18.461 | K45: 14 | L45: =2.061+2.4 -> 4.461 | O45: 18.461
A46: 煤焦油 | B46: 900-013-11 | C46: 液态 | D46: 40.136 | E46: =1.5+23.9-0.2 -> 25.2 | F46: =0.3+8.9+3 -> 12.2 | J46: 53.136 | K46: 47.736 | L46: 1 | M46: 4.4 | O46: 53.136
A47: 釜残 | B47: 900-013-11 | C47: 半固态 | D47: 110.2 | E47: =0.2 -> 0.2 | F47: =14.2+7+6+3+6.3+14 -> 50.5 | G47: =2.62 -> 2.62 | J47: 57.28 | K47: 57.08 | L47: 0.2 | O47: 57.28
A48: 煤焦油 | B48: 451-003-11 | C48: 半固态 | D48: 4.125 | F48: 4.125 | J48: 0 | O48: 0
A49: 煤焦油 | B49: 451-003-11 | C49: 液态 | D49: 7.55 | E49: =48.3 -> 48.3 | F49: =1.75 -> 1.75 | J49: 54.1 | L49: 5.8 | M49: 48.3 | O49: 54.1
A50: 焦油渣 | B50: 451-001-11 | C50: 固态 | D50: 0 | E50: =8.96 -> 8.96 | F50: =8.96 -> 8.96 | J50: 0 | O50: 0
A51: 漆渣 | B51: 900-250-12 | C51: 固态 | D51: 5.9 | F51: 5.9 | J51: 0 | O51: 0
A52: 废漆渣 | B52: 900-252-12 | C52: 固态 | D52: 85.6385 | E52: =0.22+2.06 -> 2.28 | F52: =2.6595+10.98+1+4.5 -> 19.1395 | J52: 68.779 | K52: 52.599 | L52: 16.18 | O52: 68.779
A53: 油墨渣子、油漆 | B53: 900-299-12 | C53: 半固态 | D53: 4.149 | F53: =1.089 -> 1.089 | J53: 3.06 | K53: 3.06 | O53: 3.06
A54: 硒鼓墨盒 | B54: 900-299-12 | C54: 固态 | D54: 0.776 | E54: =4+0.04 -> 4.04 | F54: =0.776+0.04 -> 0.816 | J54: 4 | K54: 4 | O54: 4
A55: 油漆渣 | B55: 900-299-12 | C55: 液态 | D55: 2.72 | F55: =0.4 -> 0.4 | J55: 2.32 | K55: 2.32 | O55: 2.32
A56: 废油墨 | B56: 264-011-12 | C56: 液态 | D56: 0.18 | F56: =0.18 -> 0.18 | J56: 0 | O56: 0
A57: 油墨渣 | B57: 264-011-12 | C57: 固态 | D57: 1.215 | F57: =1.215 -> 1.215 | J57: 0 | O57: 0
A58: 废水处理污泥 | B58: 264-012-12 | C58: 固态 | D58: 0.1 | F58: =0.1 -> 0.1 | J58: 0 | O58: 0
A59: 废漆渣稀释剂混合物 | B59: 264-013-12 | C59: 液态 | D59: 0.57 | F59: =0.57 -> 0.57 | J59: 0 | O59: 0
A60: 发泡废料，废胶水 | B60: 900-014-13 | C60: 半固态 | D60: 0.406 | F60: =0.13+0.11 -> 0.24 | J60: 0.166 | K60: 0.166 | O60: 0.166
A61: 废胶水 | B61: 900-014-13 | C61: 液态 | D61: 0.055 | F61: =0.055 -> 0.055 | J61: 0 | O61: 0
A62: 发泡废料，废胶水 | B62: 900-014-13 | C62: 固态 | D62: 3.44656 | F62: =0.08656 -> 0.08656 | J62: 3.36 | K62: 3.36 | O62: 3.36
A63: 废树脂 | B63: 900-015-13 | C63: 半固态 | D63: 0.03 | F63: =0.03 -> 0.03 | J63: 0 | O63: 0
A64: 有机树脂废物 | B64: 900-016-13 | C64: 半固态 | D64: 3.57 | J64: 3.57 | L64: 3.57 | O64: 3.57
A65: 丁二烯聚合物 | B65: 265-101-13 | C65: 固态 | D65: 1.28 | E65: =0.19 -> 0.19 | F65: =1.28+0.19 -> 1.47 | J65: 0 | O65: 0
A66: 不合格有机树脂 | B66: 265-101-13 | C66: 半固态 | D66: 2.6 | J66: 2.6 | L66: 2.6 | O66: 2.6
A67: 含盐废水 | B67: 265-103-13 | C67: 液态 | D67: 9.42 | J67: 9.42 | K67: 9.42 | O67: 9.42
A68: 釜残与滤渣 | B68: 265-103-13 | C68: 半固态 | D68: 13.96 | F68: =9.36 -> 9.36 | J68: =D68+E68-F68-G68-H68-I68 -> 4.6 | L68: 4.6 | O68: =K68+L68+M68+N68 -> 4.6
A69: 产品水解物、氯化镁盐 | B69: 265-103-13 | C69: 固态 | D69: 6 | F69: =3 -> 3 | J69: 3 | K69: 3 | O69: 3
A70: 印刷版 | B70: 231-002-16 | C70: 固态 | D70: 0.22 | F70: =0.22 -> 0.22 | J70: 0 | O70: 0
A71: 废显影液 | B71: 900-019-16 | C71: 液态 | D71: 0.01 | F71: =0.01 -> 0.01 | J71: 0 | O71: 0
A72: 含铬污泥 | B72: 336-060-17 | C72: 固态 | D72: 0.4 | F72: 0.4 | J72: 0 | O72: 0
A73: 镀铜溶液 | B73: 336-062-17 | C73: 液态 | D73: 13.065 | J73: 13.065 | L73: 1.545 | M73: 11.52 | O73: 13.065
A74: 电镀污泥 | B74: 336-063-17 | C74: 固态 | D74: 0.046 | F74: =0.046 -> 0.046 | J74: 0 | O74: 0
A75: 废槽渣 | B75: 336-064-17 | C75: 固态 | D75: 45.4 | E75: =12.06+15.54 -> 27.6 | F75: =5.3+7+16.22 -> 28.52 | J75: 44.48 | L75: 44.48 | O75: 44.48
A76: 金属表面处理污泥 | B76: 336-064-17 | C76: 半固态 | D76: 1.54 | E76: =4.87 -> 4.87 | J76: 6.41 | K76: 6.41 | O76: 6.41
A77: 金属表面处理污泥 | B77: 336-064-17 | C77: 液态 | D77: 4.48 | E77: =0.33 -> 0.33 | J77: 4.81 | K77: 0.33 | L77: 4.48 | O77: 4.81
A78: 污泥 | B78: 336-069-17 | C78: 半固态 | D78: 0.21 | J78: 0.21 | L78: 0.21 | O78: 0.21
A79: 污泥 | B79: 336-069-17 | C79: 固态 | D79: 0 | E79: =16.82 -> 16.82 | J79: 16.82 | K79: 16.82 | O79: 16.82
A80: 废UV灯管 | B80: 900-023-29 | C80: 固态 | D80: 0.04 | I80: 0.04 | J80: 0 | O80: 0
A81: 清洁剂 | B81: 900-399-35 | C81: 液态 | D81: 0.1 | F81: =0.1 -> 0.1 | J81: 0 | O81: 0
A82: 废硫氢化钠残渣 | B82: 900-399-35 | C82: 半固态 | D82: 15.72 | F82: =5.72 -> 5.72 | J82: 10 | L82: 10 | O82: 10
A83: 废碱液 | B83: 900-352-35 | C83: 液态 | D83: 88.74 | J83: 88.74 | K83: 48.08 | L83: 40.66 | O83: 88.74
A84: 废碱液 | B84: 900-354-35 | C84: 液态 | D84: 0.9 | J84: 0.9 | L84: 0.9 | O84: 0.9
A85: 含酚废水 | B85: 261-070-39 | C85: 液态 | D85: 108.88 | F85: =20+3+2.5 -> 25.5 | J85: 83.38 | M85: 83.38 | O85: 83.38
A86: 污泥 | B86: 261-084-45 | C86: 固态 | D86: 3.44 | J86: 3.44 | K86: 3.44 | O86: 3.44
A87: 含油废物 | B87: 900-041-49 | C87: 固态 | D87: 1956.852335 | E87: =192+56.2+41.885+80.181+34.462+222.166+2.78+101.57+2.52+63.32+3.17+0.3+44.473+43.97+3.19+8.64+4.12-150 -> 754.947 | F87: =160.497375+95.255+83+5.36+0.115+32+66.75762+49.95192+59.483+116.72+40.18+42.615+106.38+57.11-206 -> 709.424915 | H87: =13.4935+8.74421+6.9+31.07771+9.56+15.75+3.32+3.17+5.143+6.38 -> 103.53842 | J87: 1898.836 | K87: =1483.25-225-150-100 -> 1008.25 | L87: 659.586 | N87: =131+100 -> 231 | O87: 1898.836
A88: 防腐剂 | B88: 900-041-49 | C88: 液态 | D88: 0.0497 | F88: =0.025 -> 0.025 | J88: 0.0247 | L88: 0.0247 | O88: 0.0247
A89: 废酸碱袋 | B89: 900-042-49 | C89: 固态 | D89: 0 | E89: =2.2+0.104+0.164 -> 2.468 | F89: =2.2+0.104 -> 2.304 | J89: 0.164 | K89: 0.164 | O89: 0.164
A90: 污泥 | B90: 772-006-49 | C90: 固态 | D90: 4.3996 | F90: =2.6005+1.7991 -> 4.3996 | J90: 0 | O90: 0
A91: 废活性炭 | B91: 900-039-49 | C91: 固态 | D91: 9.247 | E91: =0.3+1.3+0.15+5+0.22+0.26+0.26 -> 7.49 | F91: =1.273+1.75+5.22+0.26 -> 8.503 | J91: 8.234 | L91: 8.234 | O91: 8.234
A92: 废水污泥 | B92: 900-046-49 | C92: 固态 | D92: 6.07 | E92: =8.02 -> 8.02 | F92: =6.07+8.02 -> 14.09 | J92: 0 | O92: 0
A93: 污泥 | B93: 900-046-49 | C93: 半固态 | D93: 1.3 | F93: =1.3 -> 1.3 | J93: 0 | O93: 0
A94: 过期化学药品 | B94: 900-047-49 | C94: 固态 | D94: 4.01 | E94: =0.712+0.988+1.034+2.02 -> 4.754 | F94: =0.01+3.054+5.7 -> 8.764 | J94: 0 | O94: 0
A95: 乙腈、异丙酮、废液 | B95: 900-047-49 | C95: 液态 | D95: 128.51186 | E95: =0.1+5.322+2.5+1+6.695+3.32+4.1138+7.27+3.523+3.64 -> 37.4838 | F95: =1.40076+12.7611+0.1+2.5+1+1.6+6.8748+0.639 -> 26.87566 | G95: =75.402+30.865+4 -> 110.267 | J95: 28.853 | K95: 1.5 | L95: =29.753-2.4 -> 27.353 | O95: 28.853
A96: 过期面膜原料、残液 | B96: 900-999-49 | C96: 液态 | D96: 1.996 | E96: =14.18 -> 14.18 | J96: 16.176 | K96: 1.996 | L96: 14.18 | O96: 16.176
A97: 小计： | D97: =SUM(D4:D96) -> 6491.875555 | E97: 1834.7848 | F97: 1373.167235 | G97: 217.7344 | H97: 137.09842 | I97: 0.04 | J97: 6598.6203 | K97: =SUM(K4:K96) -> 1404.205 | L97: 1195.4597 | M97: 3578.3906 | N97: 420.565 | O97: =SUM(K97:N97) -> 6598.6203
A98: 合计： | F98: =F97+G97+H97+I97 -> 1728.040055
